fUSD/lending_fUSD_20260703
["ID","MTS","AMOUNT","RATE_DAILY","PERIOD"]
[426932824,1783025440000,-674.0,0.000271,5]
[426932827,1783025440000,-264.6715461,0.00027113,2]
[426932854,1783025440000,-326.13382179,0.00027113,2]
[426932857,1783025440000,-189.24084267,0.00027113,2]
[426932898,1783025440000,-465.7533887,0.00027672,2]
[426932884,1783025440000,-198.08109889,0.00027672,2]
[426932888,1783025440000,-415.2544763,0.00027672,2]
[426932887,1783025440000,-178.32338398,0.00027672,2]
[426932891,1783025440000,-456.75992864,0.00027672,2]
[426932889,1783025440000,-174.39670117,0.00027672,2]
[426932894,1783025440000,-471.77462426,0.00027672,2]
[426932897,1783025440000,-374.48979882,0.00027672,2]
[426932899,1783025440000,-598.78067172,0.00027672,2]
[426932900,1783025440000,-162.02882278,0.00027672,2]
[426932896,1783025440000,-593.6280163,0.00027672,2]
[426932895,1783025440000,-448.07683969,0.00027672,2]
[426932904,1783025440000,-218.66398581,0.00027672,2]
[426932886,1783025440000,-247.59114268,0.00027672,2]
[426932902,1783025440000,-554.68746209,0.00027672,2]
[426932903,1783025440000,-692.70512897,0.00027672,2]
[426932905,1783025440000,-793.69928755,0.00027672,2]
[426932906,1783025440000,-610.1970856,0.00027672,2]
[426932914,1783025440000,-306.89519691,0.00027672,2]
[426932908,1783025440000,-306.74442674,0.00027672,2]
[426932909,1783025440000,-201.64576125,0.00027672,2]
[426932912,1783025440000,-773.61759051,0.00027672,2]
[426932910,1783025440000,-381.49671466,0.00027672,2]
[426932911,1783025440000,-165.9380636,0.00027672,2]
[426932907,1783025440000,-208.27691093,0.00027672,2]
[426932855,1783025440000,-480.86563706,0.00027113,2]
[426932913,1783025440000,-447.87941547,0.00027672,2]
[426932901,1783025440000,-377.03421397,0.00027672,2]
[426932890,1783025440000,-529.3430922,0.00027672,2]
[426932892,1783025440000,-404.73256834,0.00027672,2]
[426932885,1783025440000,-701.64415263,0.00027672,2]
[426932856,1783025440000,-245.84707191,0.00027113,2]
[426932860,1783025440000,-230.95302907,0.00027113,2]
[426932859,1783025440000,-218.13771151,0.00027113,2]
[426932863,1783025440000,-500.0,0.00027397,15]
[426932864,1783025440000,-500.0,0.00027397,15]
[426932866,1783025440000,-500.0,0.00027397,15]
[426932867,1783025440000,-500.0,0.00027397,15]
[426932861,1783025440000,-220.00660679,0.000273,30]
[426932882,1783025440000,-199.67808095,0.00027672,2]
[426932865,1783025440000,-500.0,0.00027397,15]
[426932868,1783025440000,-500.0,0.00027397,15]
[426932869,1783025440000,-1500.0,0.00027397,2]
[426932870,1783025440000,-151.0,0.00027397,2]
[426932871,1783025440000,-151.0,0.00027397,2]
[426932862,1783025440000,-500.0,0.00027397,15]
[426932883,1783025440000,-638.22089263,0.00027672,2]
[426932879,1783025440000,-28458.28714796,0.00027456,2]
[426932880,1783025440000,-200.0,0.00027661,2]
[426932878,1783025440000,-1825.54,0.000274,7]
[426932877,1783025440000,-9999.99,0.00027397,2]
[426932881,1783025440000,-230.07891307,0.00027672,2]
[426932874,1783025440000,-402.51074051,0.00027397,2]
[426932876,1783025440000,-668.25,0.00027397,2]
[426932893,1783025440000,-272.17665575,0.00027672,2]
[426932875,1783025440000,-9999.99,0.00027397,2]
[426932872,1783025440000,-3347.67,0.00027397,10]
[426932873,1783025440000,-201.25537025,0.00027397,2]
[426932954,1783025441000,-179.46,0.0002809,30]
[426932955,1783025441000,-164.41,0.00028113,30]
[426932952,1783025441000,-150.0,0.00028013,2]
[426932957,1783025441000,-150.99,0.00028203,2]
[426932953,1783025441000,-985.41,0.00028049,30]
[426932947,1783025441000,-730.32948472,0.00028,60]
[426932951,1783025441000,-323.0,0.00028,2]
[426932949,1783025441000,-643.0,0.00028,2]
[426932945,1783025441000,-153.0,0.00028,2]
[426932948,1783025441000,-160.0,0.00028,2]
[426932958,1783025441000,-31587.91,0.00028203,10]
[426932950,1783025441000,-22500.0,0.00028,2]
[426932956,1783025441000,-985.41,0.00028154,7]
[426932984,1783025441000,-1000.0,0.0002868,2]
[426932959,1783025441000,-2471.9,0.00028203,2]
[426932962,1783025441000,-877.05519079,0.0002823,2]
[426932970,1783025441000,-1825.54,0.000284,7]
[426932971,1783025441000,-1000.0,0.00028406,2]
[426932963,1783025441000,-992.12410944,0.0002823,2]
[426932965,1783025441000,-1327.32,0.00028302,2]
[426932961,1783025441000,-797.77611579,0.0002823,2]
[426932964,1783025441000,-985.41,0.0002826,2]
[426932969,1783025441000,-179.46,0.00028393,7]
[426932967,1783025441000,-1000.0,0.00028361,2]
[426932968,1783025441000,-985.41,0.00028366,30]
[426932966,1783025441000,-1000.0,0.00028315,2]
[426932944,1783025441000,-10148.80963007,0.00028,5]
[426932960,1783025441000,-9999.99,0.00028203,2]
[426932946,1783025441000,-50000.0,0.00028,2]
[426932916,1783025441000,-290.57005018,0.00027672,2]
[426932943,1783025441000,-156.0,0.00028,2]
[426932915,1783025441000,-198.16443608,0.00027672,2]
[426932917,1783025441000,-437.92686645,0.00027672,2]
[426932921,1783025441000,-497.42561469,0.00027672,2]
[426932926,1783025441000,-481.37505755,0.00027672,2]
[426932922,1783025441000,-714.07434026,0.00027672,2]
[426932920,1783025441000,-244.73940062,0.00027672,2]
[426932924,1783025441000,-167.94611917,0.00027672,2]
[426932923,1783025441000,-376.19491378,0.00027672,2]
[426932925,1783025441000,-249.79238317,0.00027672,2]
[426932918,1783025441000,-182.53923308,0.00027672,2]
[426932919,1783025441000,-156.43641278,0.00027672,2]
[426932927,1783025441000,-319.54920007,0.00027672,2]
[426932942,1783025441000,-150.0,0.00027973,2]
[426932939,1783025441000,-4456.52,0.0002787,120]
[426932929,1783025441000,-212.93692286,0.00027672,2]
[426932940,1783025441000,-157.68,0.00027911,2]
[426932930,1783025441000,-432.11591781,0.00027672,2]
[426932938,1783025441000,-728.0,0.0002784,2]
[426932936,1783025441000,-603.76611076,0.00027672,2]
[426932935,1783025441000,-436.27542303,0.00027672,2]
[426932931,1783025441000,-721.29845559,0.00027672,2]
[426932934,1783025441000,-378.48168533,0.00027672,2]
[426932932,1783025441000,-491.69414383,0.00027672,2]
[426932933,1783025441000,-633.55958961,0.00027672,2]
[426932937,1783025441000,-500.0,0.00027675,60]
[426932941,1783025441000,-5000.0,0.00027945,7]
[426932928,1783025441000,-489.20073269,0.00027672,2]
[426932973,1783025441000,-1000.0,0.00028452,2]
[426933027,1783025441000,-500.0,0.00029,7]
[426932972,1783025441000,-682.0,0.00028408,5]
[426933002,1783025441000,-156.0,0.00029,2]
[426933003,1783025441000,-179.46,0.00029,30]
[426933004,1783025441000,-985.47,0.00029,30]
[426933005,1783025441000,-566.63985286,0.00029,2]
[426933011,1783025441000,-200.0,0.00029,2]
[426933015,1783025441000,-500.0,0.00029,7]
[426933020,1783025441000,-500.0,0.00029,7]
[426933017,1783025441000,-500.0,0.00029,7]
[426933012,1783025441000,-333.09,0.00029,2]
[426933016,1783025441000,-500.0,0.00029,7]
[426933018,1783025441000,-500.0,0.00029,7]
[426933013,1783025441000,-500.0,0.00029,7]
[426933000,1783025441000,-252.0,0.00029,7]
[426933014,1783025441000,-500.0,0.00029,7]
[426933022,1783025441000,-500.0,0.00029,7]
[426933024,1783025441000,-500.0,0.00029,7]
[426933023,1783025441000,-500.0,0.00029,7]
[426933025,1783025441000,-500.0,0.00029,7]
[426933033,1783025441000,-210292.51722556,0.00029,5]
[426933032,1783025441000,-532.11,0.00029,7]
[426933026,1783025441000,-159.96,0.00029,7]
[426933028,1783025441000,-500.0,0.00029,7]
[426933030,1783025441000,-500.0,0.00029,7]
[426933031,1783025441000,-500.0,0.00029,7]
[426933029,1783025441000,-500.0,0.00029,7]
[426932983,1783025441000,-673.0,0.00028653,5]
[426933021,1783025441000,-561.01545221,0.00029,2]
[426933001,1783025441000,-174.0,0.00029,2]
[426933019,1783025441000,-500.0,0.00029,7]
[426933007,1783025441000,-200.0,0.00029,2]
[426932974,1783025441000,-985.41,0.00028471,7]
[426933009,1783025441000,-200.0,0.00029,2]
[426932976,1783025441000,-1000.0,0.00028543,2]
[426932977,1783025441000,-985.41,0.00028577,2]
[426932975,1783025441000,-1000.0,0.00028498,2]
[426932981,1783025441000,-1000.0,0.00028635,2]
[426932980,1783025441000,-5528.0,0.000286,5]
[426932979,1783025441000,-84668.71910636,0.000286,7]
[426932982,1783025441000,-1348.22543929,0.00028646,15]
[426932985,1783025441000,-985.41,0.00028683,30]
[426932990,1783025441000,-1000.0,0.00028772,2]
[426932993,1783025441000,-1000.0,0.00028817,2]
[426932994,1783025441000,-1000.0,0.00028863,2]
[426932987,1783025441000,-257.0,0.000287,7]
[426932978,1783025441000,-1000.0,0.00028589,2]
[426933008,1783025441000,-200.0,0.00029,2]
[426933010,1783025441000,-200.0,0.00029,2]
[426932992,1783025441000,-3830.46952291,0.00028816,30]
[426932999,1783025441000,-1018.43,0.00029,2]
[426933006,1783025441000,-200.0,0.00029,2]
[426932998,1783025441000,-1000.0,0.00028954,2]
[426932996,1783025441000,-1000.0,0.00028909,2]
[426932997,1783025441000,-672.0,0.00028911,5]
[426932991,1783025441000,-985.41,0.00028788,7]
[426932986,1783025441000,-179.46,0.00028696,2]
[426932995,1783025441000,-985.41,0.00028894,2]
[426932989,1783025441000,-502.09,0.00028767,2]
[426932988,1783025441000,-1000.0,0.00028726,2]
[426933073,1783025442000,-800.0,0.0003,2]
[426933087,1783025442000,-213.5548116,0.00030137,30]
[426933074,1783025442000,-40920.94095876,0.0003,5]
[426933075,1783025442000,-244566.47079453,0.0003009,2]
[426933071,1783025442000,-800.0,0.0003,2]
[426933063,1783025442000,-8974.13250598,0.000299,2]
[426933072,1783025442000,-44872.02,0.0003,2]
[426933070,1783025442000,-800.0,0.0003,2]
[426933069,1783025442000,-2716.36663526,0.00029999,2]
[426933068,1783025442000,-37971.0,0.00029902,20]
[426933088,1783025442000,-134673.81072927,0.00030137,7]
[426933064,1783025442000,-664.0,0.00029902,5]
[426933086,1783025442000,-6493.676491,0.00030137,7]
[426933100,1783025442000,-800.0,0.000305,2]
[426933077,1783025442000,-151.0,0.00030137,7]
[426933081,1783025442000,-6855.010299,0.00030137,7]
[426933084,1783025442000,-6493.676491,0.00030137,7]
[426933085,1783025442000,-6493.676491,0.00030137,7]
[426933082,1783025442000,-6855.010299,0.00030137,7]
[426933079,1783025442000,-6855.010299,0.00030137,7]
[426933078,1783025442000,-151.0,0.00030137,7]
[426933083,1783025442000,-6493.676491,0.00030137,7]
[426933080,1783025442000,-6855.010299,0.00030137,7]
[426933089,1783025442000,-160.32,0.0003014,4]
[426933091,1783025442000,-216.6671885,0.00030172,30]
[426933097,1783025442000,-467.82,0.00030485,120]
[426933066,1783025442000,-672.0,0.00029902,5]
[426933076,1783025442000,-1365726.87605611,0.000301,7]
[426933065,1783025442000,-679.0,0.00029902,5]
[426933034,1783025442000,-1256.62575978,0.00029,7]
[426933053,1783025442000,-3000.0,0.00029387,120]
[426933093,1783025442000,-3072.67,0.00030206,2]
[426933035,1783025442000,-327.0,0.00029,2]
[426933036,1783025442000,-243.97,0.00029,2]
[426933037,1783025442000,-1064.29169219,0.00029069,2]
[426933038,1783025442000,-968.08787085,0.00029069,2]
[426933040,1783025442000,-667.0,0.00029298,5]
[426933042,1783025442000,-1825.54,0.000293,7]
[426933041,1783025442000,-664.0,0.00029298,5]
[426933043,1783025442000,-678.0,0.000293,5]
[426933046,1783025442000,-3000.0,0.00029387,120]
[426933049,1783025442000,-3000.0,0.00029387,120]
[426933048,1783025442000,-3000.0,0.00029387,120]
[426933044,1783025442000,-664.0,0.00029311,5]
[426933067,1783025442000,-152.0,0.00029902,5]
[426933045,1783025442000,-150.0,0.00029372,2]
[426933047,1783025442000,-862.29410728,0.00029387,120]
[426933050,1783025442000,-3000.0,0.00029387,120]
[426933051,1783025442000,-3000.0,0.00029387,120]
[426933052,1783025442000,-3000.0,0.00029387,120]
[426933058,1783025442000,-5000.0,0.00029443,2]
[426933055,1783025442000,-3000.0,0.00029387,120]
[426933054,1783025442000,-3000.0,0.00029387,120]
[426933061,1783025442000,-299.86,0.00029728,120]
[426933056,1783025442000,-2068.85294636,0.00029387,120]
[426933062,1783025442000,-183.97,0.00029728,120]
[426933057,1783025442000,-683.0,0.00029387,5]
[426933060,1783025442000,-14919.0492,0.00029702,2]
[426933059,1783025442000,-4190.4508,0.00029702,2]
[426933039,1783025442000,-164.33,0.00029151,30]
[426933092,1783025442000,-150.59046719,0.00030172,30]
[426933152,1783025442000,-170.59,0.00031761,2]
[426933090,1783025442000,-485.0,0.0003016,2]
[426933150,1783025442000,-392.22,0.00031671,3]
[426933154,1783025442000,-500.0,0.0003178,7]
[426933145,1783025442000,-5209.9702215,0.000316,2]
[426933153,1783025442000,-1000.0,0.0003178,2]
[426933143,1783025442000,-500.0,0.00031599,120]
[426933147,1783025442000,-5209.97022147,0.000316,2]
[426933148,1783025442000,-219.32189243,0.00031614,14]
[426933168,1783025442000,-500.0,0.00031873,7]
[426933149,1783025442000,-151.0,0.00031646,2]
[426933151,1783025442000,-161.0,0.0003172,3]
[426933156,1783025442000,-500.0,0.00031873,120]
[426933166,1783025442000,-151.0,0.00031873,7]
[426933155,1783025442000,-195.63,0.000318,14]
[426933146,1783025442000,-5209.97022147,0.000316,2]
[426933158,1783025442000,-151.0,0.00031873,7]
[426933159,1783025442000,-212.7422,0.00031873,7]
[426933163,1783025442000,-6855.010299,0.00031873,7]
[426933162,1783025442000,-151.0,0.00031873,7]
[426933161,1783025442000,-6855.010299,0.00031873,7]
[426933160,1783025442000,-151.0,0.00031873,7]
[426933165,1783025442000,-6855.010299,0.00031873,7]
[426933164,1783025442000,-6855.010299,0.00031873,7]
[426933173,1783025442000,-19312.4014,0.00032,2]
[426933167,1783025442000,-151.0,0.00031873,7]
[426933170,1783025442000,-6532.1,0.00031949,7]
[426933171,1783025442000,-216.69616408,0.00031955,2]
[426933169,1783025442000,-37971.0,0.00031874,20]
[426933101,1783025442000,-257.0,0.000305,7]
[426933157,1783025442000,-151.0,0.00031873,7]
[426933144,1783025442000,-500.0,0.00031599,120]
[426933172,1783025442000,-800.0,0.00032,5]
[426933138,1783025442000,-800.0,0.000315,2]
[426933142,1783025442000,-225.53895044,0.00031599,7]
[426933094,1783025442000,-213.735553,0.0003027,14]
[426933099,1783025442000,-800.0,0.000305,2]
[426933096,1783025442000,-1825.54,0.000303,7]
[426933113,1783025442000,-800.0,0.00031,2]
[426933115,1783025442000,-800.0,0.00031,2]
[426933102,1783025442000,-2000.0,0.00030552,26]
[426933117,1783025442000,-800.0,0.00031,2]
[426933121,1783025442000,-6532.1,0.00031196,7]
[426933119,1783025442000,-181.17,0.00031075,2]
[426933104,1783025442000,-2204.124,0.00030553,26]
[426933107,1783025442000,-160.0,0.00030788,120]
[426933125,1783025442000,-211.60544451,0.00031312,6]
[426933123,1783025442000,-1277.84,0.00031197,7]
[426933098,1783025442000,-800.0,0.000305,2]
[426933111,1783025442000,-37971.0,0.00030888,20]
[426933109,1783025442000,-150.0,0.00030841,2]
[426933135,1783025442000,-2337.0,0.000314,3]
[426933137,1783025442000,-800.0,0.000315,2]
[426933134,1783025442000,-6493.676491,0.00031384,7]
[426933131,1783025442000,-6493.676491,0.00031384,7]
[426933129,1783025442000,-134673.81072927,0.00031384,7]
[426933132,1783025442000,-6493.676491,0.00031384,7]
[426933127,1783025442000,-500.0,0.0003137,2]
[426933136,1783025442000,-1825.54,0.000314,7]
[426933140,1783025442000,-295.72212552,0.00031534,2]
[426933139,1783025442000,-151.88,0.000315,18]
[426933141,1783025442000,-500.0,0.00031599,7]
[426933133,1783025442000,-6493.676491,0.00031384,7]
[426933215,1783025443000,-200.0,0.00032039,2]
[426933199,1783025443000,-200.0,0.00032039,2]
[426933206,1783025443000,-200.0,0.00032039,2]
[426933212,1783025443000,-200.0,0.00032039,2]
[426933213,1783025443000,-200.0,0.00032039,2]
[426933211,1783025443000,-200.0,0.00032039,2]
[426933209,1783025443000,-200.0,0.00032039,2]
[426933205,1783025443000,-200.0,0.00032039,2]
[426933208,1783025443000,-200.0,0.00032039,2]
[426933202,1783025443000,-200.0,0.00032039,2]
[426933207,1783025443000,-200.0,0.00032039,2]
[426933219,1783025443000,-200.0,0.00032039,2]
[426933210,1783025443000,-200.0,0.00032039,2]
[426933218,1783025443000,-200.0,0.00032039,2]
[426933216,1783025443000,-200.0,0.00032039,2]
[426933220,1783025443000,-200.0,0.00032039,2]
[426933217,1783025443000,-200.0,0.00032039,2]
[426933222,1783025443000,-200.0,0.00032039,2]
[426933221,1783025443000,-200.0,0.00032039,2]
[426933225,1783025443000,-200.0,0.00032039,2]
[426933226,1783025443000,-200.0,0.00032039,2]
[426933223,1783025443000,-200.0,0.00032039,2]
[426933197,1783025443000,-200.0,0.00032039,2]
[426933224,1783025443000,-200.0,0.00032039,2]
[426933214,1783025443000,-200.0,0.00032039,2]
[426933204,1783025443000,-200.0,0.00032039,2]
[426933187,1783025443000,-500.0,0.00032039,2]
[426933194,1783025443000,-500.0,0.00032039,2]
[426933227,1783025443000,-200.0,0.00032039,2]
[426933174,1783025443000,-5000.0,0.00032,2]
[426933177,1783025443000,-11124.77547454,0.00032,2]
[426933176,1783025443000,-800.0,0.00032,5]
[426933175,1783025443000,-1771.90754046,0.00032,2]
[426933178,1783025443000,-467.0,0.00032,5]
[426933180,1783025443000,-500.0,0.00032039,2]
[426933191,1783025443000,-500.0,0.00032039,2]
[426933181,1783025443000,-500.0,0.00032039,2]
[426933190,1783025443000,-500.0,0.00032039,2]
[426933182,1783025443000,-500.0,0.00032039,2]
[426933179,1783025443000,-500.0,0.00032039,2]
[426933184,1783025443000,-500.0,0.00032039,2]
[426933189,1783025443000,-500.0,0.00032039,2]
[426933183,1783025443000,-500.0,0.00032039,2]
[426933188,1783025443000,-500.0,0.00032039,2]
[426933185,1783025443000,-500.0,0.00032039,2]
[426933186,1783025443000,-500.0,0.00032039,2]
[426933192,1783025443000,-500.0,0.00032039,2]
[426933193,1783025443000,-500.0,0.00032039,2]
[426933198,1783025443000,-200.0,0.00032039,2]
[426933203,1783025443000,-200.0,0.00032039,2]
[426933196,1783025443000,-200.0,0.00032039,2]
[426933200,1783025443000,-200.0,0.00032039,2]
[426933201,1783025443000,-200.0,0.00032039,2]
[426933195,1783025443000,-610.0,0.00032039,2]
[426933228,1783025443000,-200.0,0.00032039,2]
[426933230,1783025443000,-200.0,0.00032039,2]
[426933229,1783025443000,-200.0,0.00032039,2]
[426933264,1783025443000,-3555.35,0.00032869,7]
[426933263,1783025443000,-315.0,0.00032862,3]
[426933262,1783025443000,-37971.0,0.00032859,20]
[426933261,1783025443000,-151.0,0.00032762,2]
[426933265,1783025443000,-1000.0,0.00032877,10]
[426933267,1783025443000,-1000.0,0.00032877,10]
[426933266,1783025443000,-1000.0,0.00032877,10]
[426933269,1783025443000,-251.576064,0.00032877,7]
[426933279,1783025443000,-1000.0,0.00032877,10]
[426933268,1783025443000,-1000.0,0.00032877,10]
[426933272,1783025443000,-1000.0,0.00032877,10]
[426933274,1783025443000,-251.576064,0.00032877,7]
[426933278,1783025443000,-251.576064,0.00032877,7]
[426933277,1783025443000,-251.576064,0.00032877,7]
[426933275,1783025443000,-1000.0,0.00032877,10]
[426933271,1783025443000,-251.576064,0.00032877,7]
[426933276,1783025443000,-1000.0,0.00032877,10]
[426933273,1783025443000,-251.576064,0.00032877,7]
[426933284,1783025443000,-902.28,0.00032877,50]
[426933282,1783025443000,-251.576064,0.00032877,7]
[426933281,1783025443000,-251.576064,0.00032877,7]
[426933280,1783025443000,-1000.0,0.00032877,10]
[426933283,1783025443000,-162.259372,0.00032877,120]
[426933285,1783025443000,-3149.54582631,0.000329,2]
[426933231,1783025443000,-200.0,0.00032039,2]
[426933258,1783025443000,-336.91,0.00032685,3]
[426933260,1783025443000,-2000.0,0.00032759,2]
[426933270,1783025443000,-1000.0,0.00032877,10]
[426933257,1783025443000,-295.72212552,0.00032534,2]
[426933259,1783025443000,-6532.1,0.00032702,14]
[426933232,1783025443000,-200.0,0.00032039,2]
[426933233,1783025443000,-800.0,0.00032039,30]
[426933244,1783025443000,-11066.17,0.00032232,2]
[426933237,1783025443000,-161.539999,0.000321,12]
[426933236,1783025443000,-2000.0,0.00032082,16]
[426933238,1783025443000,-257.0,0.000321,7]
[426933235,1783025443000,-586.0,0.00032039,30]
[426933243,1783025443000,-1621.9,0.00032232,7]
[426933240,1783025443000,-904.45,0.00032232,7]
[426933239,1783025443000,-536.0,0.00032232,7]
[426933242,1783025443000,-307.92,0.00032232,7]
[426933241,1783025443000,-18409.75,0.00032232,7]
[426933234,1783025443000,-800.0,0.00032039,30]
[426933252,1783025443000,-1825.54,0.000323,7]
[426933246,1783025443000,-3566.0,0.00032276,2]
[426933253,1783025443000,-150.0,0.00032383,2]
[426933250,1783025443000,-3652.0,0.00032276,2]
[426933255,1783025443000,-800.0,0.000325,5]
[426933249,1783025443000,-6089.0,0.00032276,2]
[426933248,1783025443000,-223.0,0.00032276,2]
[426933247,1783025443000,-1278.0,0.00032276,2]
[426933251,1783025443000,-216.0,0.00032276,2]
[426933256,1783025443000,-800.0,0.000325,5]
[426933245,1783025443000,-2988.1,0.00032232,2]
[426933254,1783025443000,-20000.0,0.000324,2]
[426933325,1783025444000,-300.0,0.00033538,2]
[426933327,1783025444000,-1101.26754386,0.00033538,2]
[426933323,1783025444000,-933.0,0.00033534,2]
[426933317,1783025444000,-800.0,0.000335,5]
[426933322,1783025444000,-169.81,0.00033534,120]
[426933324,1783025444000,-572.3149479,0.00033538,2]
[426933315,1783025444000,-1339.63,0.00033476,2]
[426933313,1783025444000,-299.86,0.00033444,120]
[426933316,1783025444000,-893.08,0.00033476,2]
[426933320,1783025444000,-197.14808368,0.00033534,7]
[426933337,1783025444000,-496.89358566,0.00033538,2]
[426933321,1783025444000,-3433.0,0.00033534,10]
[426933328,1783025444000,-515.8530777,0.00033538,2]
[426933342,1783025444000,-427.64459565,0.00033538,2]
[426933329,1783025444000,-300.0,0.00033538,2]
[426933338,1783025444000,-300.0,0.00033538,2]
[426933330,1783025444000,-300.0,0.00033538,2]
[426933331,1783025444000,-300.0,0.00033538,2]
[426933333,1783025444000,-300.0,0.00033538,2]
[426933335,1783025444000,-487.75940764,0.00033538,2]
[426933332,1783025444000,-516.97265473,0.00033538,2]
[426933336,1783025444000,-495.35167751,0.00033538,2]
[426933334,1783025444000,-300.0,0.00033538,2]
[426933339,1783025444000,-300.0,0.00033538,2]
[426933341,1783025444000,-607.91868214,0.00033538,2]
[426933319,1783025444000,-1166.42,0.00033534,4]
[426933326,1783025444000,-300.0,0.00033538,2]
[426933318,1783025444000,-1239.47165787,0.000335,2]
[426933287,1783025444000,-9000.0,0.00032999,5]
[426933309,1783025444000,-100720.62387495,0.000332,2]
[426933350,1783025444000,-300.0,0.00033538,2]
[426933291,1783025444000,-4190.0,0.00033,6]
[426933286,1783025444000,-150.59046719,0.00032903,30]
[426933288,1783025444000,-294.84165316,0.00033,120]
[426933289,1783025444000,-800.0,0.00033,5]
[426933290,1783025444000,-100033.03862114,0.00033,120]
[426933293,1783025444000,-5173.14778081,0.00033,120]
[426933292,1783025444000,-531.01960838,0.00033,2]
[426933294,1783025444000,-221.17458011,0.00033079,11]
[426933300,1783025444000,-10323.17350645,0.000331,2]
[426933297,1783025444000,-150.0,0.00033084,30]
[426933298,1783025444000,-518.9063685,0.00033084,30]
[426933314,1783025444000,-6532.1,0.00033455,14]
[426933299,1783025444000,-200.0,0.000331,12]
[426933296,1783025444000,-778.34351277,0.00033084,30]
[426933312,1783025444000,-433.0,0.00033427,120]
[426933301,1783025444000,-1825.54,0.000331,7]
[426933311,1783025444000,-433.0,0.00033417,120]
[426933304,1783025444000,-280.54,0.0003311,2]
[426933302,1783025444000,-3145.89,0.0003311,25]
[426933303,1783025444000,-2625.85,0.0003311,25]
[426933305,1783025444000,-228.73,0.0003311,2]
[426933306,1783025444000,-254.64,0.0003311,2]
[426933308,1783025444000,-161.0,0.00033198,11]
[426933310,1783025444000,-433.0,0.00033407,120]
[426933307,1783025444000,-254.64,0.0003311,2]
[426933295,1783025444000,-150.0,0.00033084,30]
[426933340,1783025444000,-300.0,0.00033538,2]
[426933351,1783025444000,-300.0,0.00033538,2]
[426933401,1783025444000,-302.19910179,0.00033538,2]
[426933377,1783025444000,-454.31833835,0.00033538,2]
[426933379,1783025444000,-300.0,0.00033538,2]
[426933376,1783025444000,-584.85636615,0.00033538,2]
[426933378,1783025444000,-300.0,0.00033538,2]
[426933380,1783025444000,-300.0,0.00033538,2]
[426933381,1783025444000,-300.0,0.00033538,2]
[426933382,1783025444000,-300.0,0.00033538,2]
[426933385,1783025444000,-300.0,0.00033538,2]
[426933383,1783025444000,-446.20103305,0.00033538,2]
[426933384,1783025444000,-300.0,0.00033538,2]
[426933386,1783025444000,-376.83099453,0.00033538,2]
[426933391,1783025444000,-300.0,0.00033538,2]
[426933387,1783025444000,-1101.26754386,0.00033538,2]
[426933388,1783025444000,-300.0,0.00033538,2]
[426933389,1783025444000,-300.0,0.00033538,2]
[426933396,1783025444000,-607.91868214,0.00033538,2]
[426933392,1783025444000,-300.0,0.00033538,2]
[426933395,1783025444000,-300.0,0.00033538,2]
[426933393,1783025444000,-495.35167751,0.00033538,2]
[426933394,1783025444000,-300.0,0.00033538,2]
[426933398,1783025444000,-730.2023839,0.00033538,2]
[426933397,1783025444000,-536.83065571,0.00033538,2]
[426933400,1783025444000,-303.40388377,0.00033538,2]